bitfinex-derivatives/quotes_ETHF0:USTF0_20251005
["timestamp","ask_amount","ask_price","bid_price","bid_amount"]
[1759649880473,0.1328,4581.5,4581.4,0.3383]
[1759649880685,1.21570929,4581.5,4581.4,0.7678]
[1759649881080,1.24579753,4581.5,4581.4,0.7678]
[1759649881282,0.91059753,4581.5,4581.4,0.7678]
[1759649881583,1.24579753,4581.5,4581.4,0.7678]
[1759649881787,0.91059753,4581.5,4581.4,0.7678]
[1759649882685,1.24579753,4581.5,4581.4,0.7678]
[1759649886681,1.24579753,4581.5,4581.4,0.3383]
[1759649887085,1.24579753,4581.5,4581.4,0.5542]
[1759649887681,1.24579753,4581.5,4581.4,0.7678]
[1759649888579,1.24579753,4581.5,4581.4,0.5542]
[1759649888787,0.7649,4581.4,4581.3,3.4298]
[1759649888986,1.21570929,4581.4,4581.3,3.5461]
[1759649889186,1.24579753,4581.4,4581.3,3.762]
[1759649891993,1.24579753,4581.4,4581.3,3.5461]
[1759649892495,1.24579753,4581.4,4581.3,3.762]
[1759649892992,1.24579753,4581.4,4581.3,3.9756]
[1759649893383,1.24579753,4581.4,4581.3,3.2078]
[1759649893587,1.24579753,4581.4,4580.8,0.5603]
[1759649893588,6.24579753,4581.4,4580.8,0.5603]
[1759649893789,0.7649,4580.9,4580.8,0.6515]
[1759649893986,0.7649,4580.9,4580.8,0.4295]
[1759649893987,1.21570929,4580.9,4580.8,0.4295]
[1759649894190,0.2046,4579.9,4579.8,0.3383]
[1759649894386,1.21570929,4579.9,4579.8,0.9898]
[1759649894892,0.88050929,4579.9,4579.8,0.9898]
[1759649895193,0.91059753,4579.9,4579.8,0.7678]
[1759649895396,1.24579753,4579.9,4579.8,0.5542]
[1759649895986,0.7649,4579.8,4579.7,3.2078]
[1759649896196,1.21570929,4579.8,4579.7,3.762]
[1759649896393,1.24579753,4579.8,4579.7,3.762]
[1759649896691,1.24579753,4579.8,4579.7,3.9756]
[1759649897596,0.91059753,4579.8,4579.7,3.9756]
[1759649898998,1.23869753,4579.8,4579.7,3.9756]
[1759649899298,0.48089753,4579.8,4579.7,3.9756]
[1759649900090,0.68559753,4579.8,4579.7,3.9756]
[1759649902094,0.89689753,4579.8,4579.7,3.9756]
[1759649902397,0.03008824,4579.8,4579.7,4.36852]
[1759649902990,0.23478824,4579.8,4579.7,4.36852]
[1759649903192,0.56288824,4579.8,4579.7,4.36852]
[1759649903799,0.77418824,4579.8,4579.7,0.7678]
[1759649903997,1.22052399,4579.8,4579.6,0.00172839]
[1759649904200,0.77418824,4579.8,4579.6,0.00172839]
[1759649904394,0.44608824,4579.7,4579.6,0.31682839]
[1759649904698,0.77418824,4579.7,4579.6,0.54012839]
[1759649905291,0.77418824,4579.7,4579.6,0.76502839]
[1759649905292,0.03008824,4579.7,4579.6,0.76502839]
[1759649907203,0.77418824,4579.7,4579.6,0.76502839]
[1759649912099,0.77418824,4579.7,4579.6,0.78142839]
[1759649912302,1.220495,4579.7,4579.6,0.78142839]
[1759649912610,0.77418824,4579.7,4579.6,0.78142839]
[1759649913402,1.22053045,4579.7,4579.6,0.78142839]
[1759649914510,0.44608824,4579.7,4579.6,0.78142839]
[1759649914707,0.03008824,4579.7,4579.6,0.78142839]
[1759649915409,0.24538824,4579.7,4579.6,0.78142839]
[1759649916303,0.69195466,4579.7,4579.6,0.78142839]
[1759649918506,1.01935466,4579.7,4579.6,0.78142839]
[1759649920906,0.47665466,4579.7,4579.6,1.92540486]
[1759649923415,1.23395466,4579.7,4579.6,0.78142839]
[1759649926414,0.90655466,4579.7,4579.6,0.78142839]
[1759649926613,1.23395466,4579.7,4579.6,0.78142839]
[1759649931130,1.23395466,4579.7,4579.6,0.55802839]
[1759649933933,1.23395466,4579.7,4579.6,0.77402839]
[1759649934832,1.23395466,4579.7,4579.6,0.00172839]
[1759649935228,0.90655466,4579.7,4579.6,0.76432839]
[1759649935829,1.23505466,4579.7,4579.6,0.76432839]
[1759649943536,0.90655466,4579.7,4579.6,0.76432839]
[1759649943734,1.23505466,4579.7,4579.6,0.76432839]
[1759649945033,0.90655466,4579.7,4579.6,0.76432839]
[1759649945332,0.47665466,4579.7,4579.6,0.76432839]
[1759649946534,1.23215466,4579.7,4579.6,0.76432839]
[1759649949740,0.68575466,4579.7,4579.6,0.76432839]
[1759649949942,0.47665466,4579.7,4579.6,0.76432839]
[1759649952347,1.01425466,4579.7,4579.6,1.75341187]
[1759649952643,1.23215466,4579.7,4579.6,1.75341187]
[1759649956043,1.23215466,4579.7,4579.6,0.54832839]
[1759649956638,1.23215466,4579.7,4579.6,0.34172839]
[1759649956842,1.23215466,4579.7,4579.6,0.00172839]
[1759649959549,6.23215466,4579.7,4579.6,0.00172839]
[1759649961138,0.7413,4579.3,4579.2,3.2078]
[1759649961345,1.43995466,4579.3,4579.2,3.2078]
[1759649962048,1.43995466,4579.3,4579.2,3.21057126]
[1759649965138,1.43995466,4579.3,4579.2,3.51977126]
[1759649965446,1.43995466,4579.3,4579.2,3.21057126]
[1759649966346,1.43995466,4579.3,4579.2,3.73517126]
[1759649967447,1.21795466,4579.3,4579.2,3.94987126]
[1759649967647,1.43995466,4579.3,4579.2,3.94987126]
[1759649971047,1.43995466,4579.3,4579.2,3.73517126]
[1759649972250,1.43995466,4579.3,4579.2,3.95847126]
[1759649973851,0.47665466,4579.3,4579.2,4.35143126]
[1759649974048,0.47665466,4579.3,4579.2,5.34051474]
[1759649975048,0.47665466,4579.3,4579.2,4.94755474]
[1759649978960,0.47665466,4579.3,4579.2,5.34051474]
[1759649990169,0.03008824,4579.3,4579.2,5.34051474]
[1759649991474,0.5559,4580.4,4580.3,0.74]
[1759649991773,1.2262829,4580.4,4580.3,0.74]
[1759649993677,0.8934829,4580.4,4580.3,0.74]
[1759649994384,1.2262829,4580.4,4580.3,0.74]
[1759649997366,1.4472829,4580.4,4580.3,0.74]
[1759650000375,1.4472829,4580.4,4580.3,0.521]
[1759650002978,1.4472829,4580.4,4580.3,0.74]
[1759650006780,0.4481829,4580.4,4580.3,4.93688348]
[1759650008478,1.2262829,4580.4,4580.3,3.5242]
[1759650009282,0.4453,4580.2,4580.1,0.521]
[1759650009482,1.2262829,4580.2,4580.1,0.521]
[1759650010482,1.2262829,4580.2,4580.1,0.74]
[1759650025988,1.2262829,4580.2,4580.1,3.9478]
[1759650033494,1.2262829,4580.2,4580.1,3.7288]
[1759650034094,0.8934829,4580.2,4579.6,0.322]
[1759650034291,0.7631,4579.7,4579.6,0.7529]
[1759650034490,1.2112829,4579.7,4579.6,0.7529]
[1759650035093,1.2112829,4579.7,4579.5,3.2078]
[1759650035289,1.2112829,4579.6,4579.5,3.7413]
[1759650035800,1.2112829,4579.6,4579.5,3.9607]
[1759650036896,1.2112829,4579.6,4579.5,4.0852]
[1759650039185,0.8838829,4579.6,4579.5,4.0852]
[1759650040393,1.2112829,4579.6,4579.5,4.0852]
[1759650045600,1.2112829,4579.6,4579.5,0.8774]
[1759650045799,1.2112829,4579.6,4579.5,4.0852]
[1759650047200,0.8838829,4579.6,4579.5,4.0852]
[1759650047397,0.6653829,4579.6,4579.5,4.0852]
[1759650048401,1.4164829,4579.6,4579.5,4.0852]
[1759650051503,1.4164829,4579.6,4579.5,0.8774]
[1759650052002,1.4164829,4579.6,4579.5,0.7529]
[1759650053906,1.4164829,4579.6,4579.5,0.8881]
[1759650054102,1.1954829,4579.6,4579.5,0.8881]
[1759650054303,1.4164829,4579.6,4579.5,0.8881]
[1759650055903,1.1992829,4579.6,4579.5,0.8881]
[1759650056108,0.4481829,4579.6,4579.5,0.8881]
[1759650056310,0.221,4579.9,4579.8,0.44]
[1759650056510,0.4316,4579.9,4579.8,0.7744]
[1759650057002,0.88008422,4579.9,4579.8,0.7744]
[1759650057203,0.88008422,4579.9,4579.8,1.16731]
[1759650057602,0.66948422,4579.9,4579.8,1.16731]
[1759650057805,0.44848422,4579.9,4579.8,1.16731]
[1759650058903,0.7407,4579.6,4579.5,0.3344]
[1759650059108,0.7407,4579.6,4579.5,0.9096]
[1759650059109,1.41018422,4579.6,4579.5,0.9096]
[1759650059308,1.41018422,4579.6,4579.5,0.3344]
[1759650059809,1.41018422,4579.6,4579.5,0.5525]
[1759650060402,1.41018422,4579.6,4579.4,3.2078]
[1759650060608,1.32178422,4579.5,4579.2,0.33717126]
[1759650060806,0.7407,4579.3,4579.2,0.55527126]
[1759650061014,1.18918422,4579.3,4579.2,0.55527126]
[1759650062207,1.18918422,4579.3,4579.2,0.77717126]
[1759650063215,1.18918422,4579.3,4579.2,0.55527126]
[1759650063512,1.18918422,4579.3,4579.2,0.00277126]
[1759650064218,1.18918422,4579.3,4579.2,0.33717126]
[1759650064418,1.18918422,4579.3,4579.2,0.00277126]
[1759650064917,1.18918422,4579.3,4579.2,0.55527126]
[1759650066116,1.18918422,4579.3,4579.2,0.00277126]
[1759650066318,1.41018422,4579.3,4579.2,0.00277126]
[1759650068416,1.41018422,4579.3,4579.2,0.55527126]
[1759650070012,1.18918422,4579.3,4579.2,0.55527126]
[1759650070215,1.41018422,4579.3,4579.2,0.55527126]
[1759650071817,1.18918422,4579.3,4579.2,0.55527126]
[1759650072017,1.10078422,4579.3,4579.2,0.77717126]
[1759650072717,0.65908422,4579.3,4579.2,0.77717126]
[1759650072918,0.88008422,4579.3,4579.2,0.77717126]
[1759650074020,0.44848422,4579.3,4579.2,1.17013126]
[1759650074214,0.7407,4580.5,4580.4,0.44]
[1759650074420,1.40978596,4580.5,4580.4,0.7744]
[1759650075123,0.44808596,4580.5,4580.4,0.7744]
[1759650075313,0.44808596,4580.5,4580.4,3.9822]
[1759650075509,0.96808596,4580.5,4580.4,3.9822]
[1759650076111,0.65868596,4580.5,4580.4,3.9822]
[1759650076317,0.44808596,4580.5,4580.4,4.37506]
[1759650079322,0.4379,4580.9,4580.8,0.4448]
[1759650079522,0.88512618,4580.9,4580.8,0.7562]
[1759650079920,0.66412618,4580.9,4580.8,0.7562]
[1759650080123,0.44722618,4580.9,4580.8,0.7562]
[1759650080720,0.44722618,4580.9,4580.8,1.74510788]
[1759650081019,0.4379,4581.3,4581.2,0.7562]
[1759650081222,0.2169,4581.3,4581.2,3.964]
[1759650081726,0.66393127,4581.3,4581.2,3.964]
[1759650083925,0.66393127,4581.3,4581.2,0.7562]
[1759650084125,0.66393127,4581.3,4581.2,3.964]
[1759650084320,0.44703127,4581.3,4581.2,3.964]
[1759650085423,0.98890788,4582.1,4581.6,0.4448]
[1759650085623,0.44871094,4581.7,4581.6,0.7562]
[1759650085930,0.99061094,4581.7,4581.6,0.7562]
[1759650086722,1.21161094,4581.7,4581.6,0.7562]
[1759650087929,1.21141094,4581.7,4581.6,0.7562]
[1759650088124,1.43241094,4581.7,4581.6,0.7562]
[1759650089619,1.43241094,4581.7,4581.6,0.5341]
[1759650089824,0.2169,4581.3,4581.2,3.4305]
[1759650090025,0.7627,4581.3,4581.2,3.964]
[1759650090630,1.20875867,4581.3,4580.6,3.2078]
[1759650090830,0.7627,4580.9,4580.8,0.7562]
[1759650093024,0.221,4581.1,4581.0,0.8692]
[1759650093927,0.4437,4581.1,4581.0,0.8692]
[1759650094329,0.7782,4581.1,4581.0,0.8692]
[1759650094729,1.4475709,4581.1,4581.0,0.5201]
[1759650094933,1.4475709,4581.1,4581.0,0.7402]
[1759650095328,0.2227,4581.1,4581.0,0.8692]
[1759650095534,0.221,4581.3,4581.2,0.4317]
[1759650095833,0.88992022,4581.3,4581.2,0.7402]
[1759650096828,1.22442022,4581.3,4581.2,0.7402]
[1759650097232,0.66892022,4581.3,4581.2,0.7402]
[1759650097733,0.44622022,4581.3,4581.2,0.7402]
[1759650098531,0.66892022,4581.3,4581.2,0.7402]
[1759650099338,0.44622022,4581.3,4581.2,0.7402]
[1759650103039,1.22662022,4581.3,4581.2,0.5201]
[1759650103840,1.22662022,4581.3,4581.2,0.3085]
[1759650104037,0.3345,4581.2,4581.1,3.5163]
[1759650104239,1.22662022,4581.2,4581.1,3.5163]
[1759650105844,1.22662022,4581.2,4581.1,3.7279]
[1759650106044,1.00342022,4581.2,4581.1,3.948]
[1759650106247,1.22662022,4581.2,4581.1,3.948]
[1759650109350,0.89212022,4581.2,4581.1,3.948]
[1759650109846,1.22652022,4581.2,4581.1,3.948]
[1759650110948,0.89212022,4581.2,4581.1,3.948]
[1759650112645,0.3344,4581.1,4580.6,3.2078]
[1759650112950,0.2147,4580.7,4580.6,3.956]
[1759650113450,0.66092022,4580.7,4580.6,3.956]
[1759650116345,0.44622022,4580.7,4580.6,3.956]
[1759650116545,0.44622022,4581.0,4580.6,3.6347]
[1759650116756,0.5491,4581.0,4580.9,0.7482]
[1759650117052,0.66311814,4581.0,4580.9,0.7482]
[1759650117551,0.44841814,4581.0,4580.9,0.7482]
[1759650119955,0.66311814,4581.0,4580.9,0.7482]
[1759650121248,1.20491814,4581.0,4580.9,0.7482]
[1759650126667,1.20491814,4581.0,4580.9,0.3213]
[1759650127067,1.20491814,4581.0,4580.9,0.5283]
[1759650129064,1.20491814,4581.0,4580.9,0.7482]
[1759650131974,1.42491814,4581.0,4580.9,0.7482]
[1759650135367,1.42491814,4581.0,4580.9,0.5283]
[1759650135569,0.7565,4580.9,4580.8,3.2078]
[1759650135771,1.20491814,4580.9,4580.8,3.7361]
[1759650136275,1.20491814,4580.9,4580.8,0.5283]
[1759650138078,1.20491814,4580.9,4580.8,0.3213]
[1759650138466,0.3214,4580.8,4580.7,3.2078]
[1759650138672,1.20221814,4580.8,4580.7,3.2078]
[1759650138970,1.20221814,4580.8,4580.7,3.5363]
[1759650139477,1.20221814,4580.8,4580.7,3.7413]
[1759650140879,0.67171814,4580.8,4580.7,3.9512]
[1759650141580,0.99311814,4580.8,4580.7,0.7434]
[1759650142176,0.44841814,4580.8,4580.7,0.7434]
[1759650142375,0.89171814,4580.8,4580.7,0.7434]
[1759650143182,1.21311814,4580.8,4580.7,0.7434]
[1759650144883,0.89171814,4580.8,4580.7,0.7434]
[1759650145781,0.67171814,4580.8,4580.7,0.7434]
[1759650145984,0.89171814,4580.8,4580.7,0.7434]
[1759650146384,1.21311814,4580.8,4580.7,0.7434]
[1759650147891,0.66841814,4580.8,4580.7,0.7434]
[1759650148986,0.89171814,4580.8,4580.7,0.7434]
[1759650150685,1.21311814,4580.8,4580.7,0.7434]
[1759650150889,0.67171814,4580.8,4580.7,0.7434]
[1759650151278,0.44841814,4580.8,4580.7,0.7434]
[1759650151481,0.22,4581.0,4580.9,0.7573]
[1759650151677,0.66848695,4581.0,4580.9,3.9651]
[1759650152483,0.44848695,4581.0,4580.9,3.9651]
[1759650152683,0.4447,4581.1,4581.0,0.8893]
[1759650152881,1.22239807,4581.1,4581.0,0.8893]
[1759650153081,1.44209807,4581.1,4581.0,0.8893]
[1759650153683,1.22209807,4581.1,4581.0,0.8893]
[1759650153989,1.44209807,4581.1,4581.0,0.8893]
[1759650158790,1.22209807,4581.1,4581.0,0.7573]
[1759650158990,1.44209807,4581.1,4581.0,0.7573]
[1759650161891,1.22209807,4581.1,4581.0,0.7573]
[1759650162084,1.44209807,4581.1,4581.0,0.7573]
[1759650163385,0.9936,4581.1,4581.0,0.7573]
[1759650163686,1.44220778,4581.1,4581.0,0.7573]
[1759650165888,1.44220778,4581.1,4581.0,0.3262]
[1759650166094,0.9058,4581.0,4580.9,0.3262]
[1759650166287,1.35440778,4581.0,4580.8,3.2078]
[1759650166586,1.22220778,4580.9,4580.8,3.7496]
[1759650167185,1.22220778,4580.9,4580.8,3.9651]
[1759650167387,0.67330778,4580.9,4580.8,3.9651]
[1759650170395,1.01350778,4580.9,4580.8,3.9651]
[1759650170695,1.01350778,4580.9,4580.8,0.7573]
[1759650171592,0.6733952,4580.9,4580.8,4.35793]
[1759650172094,1.2395952,4580.9,4580.8,4.35793]
[1759650172794,0.6733952,4580.9,4580.8,4.35793]
[1759650172997,0.4486952,4580.9,4580.8,4.35793]
[1759650176297,0.4486952,4580.9,4580.8,1.15013]
[1759650176692,0.4486952,4580.9,4580.8,4.35793]
[1759650184500,0.4486952,4580.9,4580.8,1.15013]
[1759650184701,0.4486952,4580.9,4580.8,4.35793]
[1759650186710,0.4486952,4580.9,4580.8,1.15013]
[1759650186915,1.2195952,4580.9,4580.8,3.2078]
[1759650187204,2.3639134,4580.9,4580.4,0.22]
[1759650187506,2.3639134,4580.9,4580.5,0.307]
[1759650187507,0.7709,4580.6,4580.5,0.307]
[1759650187709,1.2195952,4580.6,4580.5,0.307]
[1759650187906,0.7709,4580.0,4579.9,0.5188]
[1759650188104,1.21949531,4580.0,4579.9,0.952]
[1759650188305,0.7709,4580.0,4579.9,0.952]
[1759650188506,0.7709,4580.0,4579.9,0.7402]
[1759650188904,0.5449,4580.1,4580.0,0.5495]
[1759650189105,0.7709,4580.1,4580.0,0.732]
[1759650189709,0.7709,4580.1,4580.0,0.8565]
[1759650190610,0.3402,4580.4,4580.0,0.6433]
[1759650190806,0.2047,4580.4,4580.3,0.732]
[1759650191008,0.2047,4580.4,4580.3,1.12487]
[1759650191208,0.3402,4581.3,4580.5,0.1245]
[1759650191514,0.5449,4580.7,4580.6,0.732]
[1759650192811,0.2047,4580.7,4580.6,0.732]
[1759650193416,0.2047,4581.0,4580.9,0.732]
[1759650194211,0.7709,4581.0,4580.9,0.5202]
[1759650194415,0.7709,4581.0,4580.9,0.307]
[1759650194617,0.9003,4581.0,4580.9,0.307]
[1759650194818,0.7709,4581.0,4580.9,0.5202]
[1759650195120,0.7709,4581.0,4580.9,0.732]
[1759650195522,0.7709,4581.0,4580.9,0.307]
[1759650195920,0.7709,4581.0,4580.9,0.5202]
[1759650196120,0.7709,4581.0,4580.9,0.732]
[1759650196925,0.7709,4581.0,4580.9,1.12482]
[1759650197124,0.2047,4581.0,4580.9,0.732]
[1759650197921,0.4133,4581.0,4580.9,0.732]
[1759650198127,0.7509,4581.0,4580.9,0.5202]
[1759650198326,0.3376,4580.1,4579.6,3.2078]
[1759650198529,0.2043,4579.7,4579.6,3.6312]
[1759650198725,0.5419,4580.4,4580.3,0.4234]
[1759650198924,0.7505,4580.4,4580.3,0.7487]
[1759650200132,0.4129,4580.4,4580.3,0.7487]
[1759650200731,0.7505,4580.4,4580.3,0.7487]
[1759650201426,0.22,4580.7,4580.3,0.7487]
[1759650201627,0.2043,4580.5,4580.4,0.3253]
[1759650201833,0.2043,4580.5,4580.4,0.7487]
[1759650202337,0.7505,4580.5,4580.4,0.7487]
[1759650204832,0.4129,4580.5,4580.4,0.7487]
[1759650205034,0.2043,4580.8,4580.7,0.7487]
[1759650205234,0.2043,4581.1,4581.0,0.8748]
[1759650208536,0.4129,4581.1,4581.0,0.7487]
[1759650208742,0.7505,4581.1,4581.0,0.3253]
[1759650209239,0.7505,4581.1,4581.0,0.5442]
[1759650210628,0.1266,4581.0,4580.5,0.3253]
[1759650210834,0.7505,4580.6,4580.5,0.8748]
[1759650211034,0.4129,4580.6,4580.5,0.8748]
[1759650211534,0.7297,4580.6,4580.5,0.8748]
[1759650212342,0.7297,4580.6,4580.5,0.7487]
[1759650216140,0.7297,4580.6,4580.5,0.879]
[1759650219132,0.7297,4580.6,4580.5,0.3253]
[1759650219337,0.7297,4580.6,4580.4,0.39286]
[1759650219533,0.3168,4580.5,4580.4,0.39286]
[1759650219846,0.7659,4580.5,4580.4,0.2207]
[1759650220145,0.7659,4580.5,4580.4,0.5528]
[1759650220944,0.9017,4580.5,4580.1,0.3321]
[1759650221747,0.3168,4580.1,4579.7,3.60072]
[1759650221950,0.7659,4579.9,4579.8,0.5528]
[1759650222242,0.7659,4579.9,4579.8,0.778]
[1759650223048,0.7659,4579.9,4579.8,0.5528]
[1759650223948,0.7659,4579.9,4579.8,0.778]
[1759650224445,0.4491,4579.9,4579.8,0.778]
[1759650225148,0.7659,4579.9,4579.8,0.778]
[1759650228555,0.2122,4580.2,4580.1,0.7217]
[1759650229049,0.2122,4580.2,4580.1,1.11459]
[1759650229245,0.549,4580.2,4580.1,0.7217]
[1759650229452,0.7749,4580.2,4580.1,0.7217]
[1759650231444,0.7749,4580.2,4580.0,0.3081]
[1759650231743,0.7749,4580.2,4579.9,0.3929]
[1759650231945,0.7749,4580.2,4580.1,0.2068]
[1759650232451,0.7749,4580.2,4580.1,0.5149]
[1759650235050,0.7749,4580.2,4580.1,0.7217]
[1759650235651,0.7749,4580.2,4580.1,0.5149]
[1759650236251,0.7749,4580.2,4580.0,0.39289]
[1759650236647,1.22210578,4580.1,4580.0,0.70099]
[1759650236953,1.22210578,4580.1,4580.0,0.90779]
[1759650237755,1.22210578,4580.1,4579.8,0.39291]
[1759650237952,0.7749,4579.9,4579.8,0.70101]
[1759650238153,1.22210578,4579.9,4579.8,0.70101]
[1759650238362,0.65940578,4579.9,4579.8,1.11461]
[1759650238552,0.39720578,4579.9,4579.8,1.11461]
[1759650238756,0.2122,4580.3,4580.2,0.39287]
[1759650239058,0.2122,4580.3,4580.2,0.80647]
[1759650239258,0.2122,4580.3,4580.2,0.7217]
[1759650239656,3.9827,4581.1,4581.0,0.7217]
[1759650239856,4.2027,4581.1,4581.0,0.8571]
[1759650240056,4.2027,4581.1,4581.0,0.5149]
[1759650240554,4.2027,4581.1,4581.0,0.3081]
[1759650240755,4.2027,4581.1,4580.6,0.3081]
[1759650241056,0.2122,4580.6,4580.5,0.2068]
[1759650241263,1.76372529,4580.6,4580.5,0.2068]
[1759650241658,0.7749,4580.6,4580.5,0.7217]
[1759650242360,0.22,4580.8,4580.6,0.3081]
[1759650242658,0.9949,4580.8,4580.7,0.7217]
[1759650242858,0.2122,4580.8,4580.7,0.7217]
[1759650243053,0.769,4580.8,4580.7,0.7217]
[1759650243957,0.769,4580.8,4580.5,0.1354]
[1759650243958,0.98882529,4581.4,4581.1,0.3081]
[1759650244157,0.98882529,4581.4,4581.0,0.1354]
[1759650244158,1.42692529,4581.4,4581.0,0.1354]
[1759650244356,0.4381,4581.2,4581.1,0.3081]
[1759650244561,0.9949,4581.2,4581.1,0.7217]
[1759650245362,0.4381,4581.2,4581.1,0.7217]
[1759650245559,0.4322,4581.2,4581.1,0.7217]
[1759650246163,0.9949,4581.2,4581.1,0.7217]
[1759650246761,0.7749,4581.2,4581.1,0.7217]
[1759650246965,0.9949,4581.2,4581.1,0.7217]
[1759650248961,0.6581,4581.2,4581.1,0.7217]
[1759650249266,0.22,4581.2,4581.1,0.7217]
[1759650249669,0.4322,4581.2,4581.1,0.7217]
[1759650249864,0.9949,4581.2,4581.1,0.7217]
[1759650250464,1.44202005,4581.2,4581.1,0.7217]
[1759650250968,0.44712005,4581.2,4581.1,1.71052529]
[1759650251969,0.65932005,4581.2,4581.1,1.71052529]
[1759650252861,0.65932005,4581.2,4581.1,0.7217]
[1759650253365,0.99612005,4581.2,4581.1,0.7217]
[1759650253865,1.22202005,4581.2,4581.1,0.7217]
[1759650255071,0.65932005,4581.2,4581.1,0.7217]
[1759650256669,1.22202005,4581.2,4581.1,0.3081]
[1759650256870,1.22202005,4581.2,4581.1,0.5149]
[1759650257270,1.22202005,4581.2,4581.1,0.7217]
[1759650259072,0.88522005,4581.2,4581.1,0.7217]
[1759650260069,1.20502005,4581.2,4581.1,0.7217]
[1759650263475,0.88522005,4581.2,4580.9,3.2078]
[1759650263677,1.18012005,4581.1,4581.0,0.3336]
[1759650263872,1.18012005,4581.1,4581.0,0.5476]
[1759650264375,0.733,4581.0,4580.9,0.3336]
[1759650264578,1.18012005,4581.0,4580.9,0.3336]
[1759650264878,1.17982976,4581.0,4580.9,0.3336]
[1759650265276,1.17982976,4581.0,4580.9,0.5476]
[1759650270483,1.30662976,4581.0,4580.7,3.2078]
[1759650270789,0.733,4580.3,4580.2,3.5414]
[1759650271081,0.44682976,4580.3,4580.2,3.9811]
[1759650271287,0.44682976,4580.3,4580.2,3.9782]
[1759650271486,0.2085,4580.4,4580.3,0.61857]
[1759650271691,0.65586184,4580.4,4580.3,0.82587]
[1759650271892,0.60586184,4580.4,4580.3,0.82587]
[1759650272192,0.44736184,4580.4,4580.3,1.15657]
[1759650272890,0.44736184,4580.4,4580.3,2.30062396]
[1759650275497,0.44736184,4580.4,4580.3,1.15657]
[1759650278000,0.44736184,4580.4,4580.3,1.37657]
[1759650281004,0.9201,4581.4,4581.3,0.538]
[1759650281199,1.36765973,4581.4,4581.3,0.538]
[1759650282599,1.19565973,4581.4,4581.3,0.7637]
[1759650287602,1.19405973,4581.4,4581.3,0.7637]
[1759650291417,0.211,4581.1,4581.0,0.7532]
[1759650291618,1.18765973,4581.1,4581.0,0.8801]
[1759650293618,0.86435973,4581.1,4581.0,0.8801]
[1759650294922,0.44755973,4581.1,4581.0,0.8801]
[1759650295121,0.44755973,4581.1,4581.0,2.02415396]
[1759650296325,0.44755973,4581.1,4581.0,0.8801]
[1759650300525,0.65335973,4581.1,4581.0,0.8801]
[1759650300920,1.18765973,4581.1,4581.0,0.8801]
[1759650302124,0.65335973,4581.1,4581.0,0.8801]
[1759650302319,0.44755973,4581.1,4581.0,0.8801]
[1759650302533,0.00231537,4581.7,4581.6,1.14595]
[1759650302722,0.00231537,4581.7,4581.6,5.71780396]
[1759650303027,0.00231537,4581.7,4581.6,10.71780396]
[1759650303421,0.00231537,4581.7,4581.6,10.32505396]
[1759650303723,0.53141537,4581.7,4581.6,4.181]
[1759650303923,0.20811537,4581.7,4581.6,4.181]
[1759650305219,0.00231537,4581.7,4581.6,4.181]
[1759650305627,0.00231537,4581.7,4581.6,4.57375]
[1759650306226,0.00231537,4581.7,4581.6,4.181]
[1759650314632,0.46262573,4581.7,4581.6,4.181]
[1759650318043,0.3161,4582.5,4582.0,0.136]
[1759650318238,0.7424,4582.5,4582.4,3.9772]
[1759650318438,0.7424,4582.5,4582.4,3.7602]
[1759650318645,0.7424,4582.5,4582.4,3.5458]
[1759650319137,0.74475476,4582.5,4582.4,3.5458]
[1759650319740,0.74475476,4582.5,4582.4,3.7602]
[1759650320444,0.74475476,4582.5,4582.4,3.5458]
[1759650321247,0.87305476,4582.5,4582.4,3.2078]
[1759650321750,0.3161,4582.4,4581.9,3.2078]
[1759650322044,1.83158253,4582.0,4581.9,3.2078]
[1759650323344,1.51548253,4582.0,4581.5,0.338]
[1759650323649,0.7424,4581.5,4581.4,3.9772]
[1759650324541,3.2078,4582.4,4581.5,0.136]
[1759650324744,0.7424,4582.1,4582.0,3.9772]
[1759650324944,0.7424,4582.1,4582.0,4.1132]
[1759650325143,0.2131,4582.1,4582.0,4.1132]
[1759650325741,0.00235476,4582.5,4582.0,3.7752]
[1759650325944,0.21545476,4582.5,4582.4,0.7694]
[1759650326142,0.74475476,4582.5,4582.4,0.7694]
[1759650326850,0.42865476,4582.5,4582.4,0.7694]
[1759650327346,1.65456502,4584.1,4584.0,0.39255]
[1759650327552,0.3161,4584.1,4584.0,4.80863253]
[1759650327751,0.3161,4584.1,4584.0,9.80863253]
[1759650328146,0.31847149,4584.1,4584.0,9.81044659]
[1759650329246,0.31847149,4584.1,4584.0,10.39101164]
[1759650329446,0.31847149,4584.1,4584.0,9.81044659]
[1759650329847,0.53157149,4584.1,4584.0,9.41789659]
[1759650330348,0.53157149,4584.1,4584.0,4.41789659]
[1759650332058,0.74477149,4584.1,4584.0,4.19789659]
[1759650332845,0.53157149,4584.1,4584.0,4.19789659]
[1759650333048,0.31847149,4584.1,4584.0,4.41789659]
[1759650333952,0.31847149,4584.1,4584.0,9.41789659]
[1759650336454,0.31847149,4584.1,4584.0,4.41789659]
[1759650340449,0.52797149,4584.1,4584.0,4.41789659]
[1759650340642,0.31847149,4584.1,4584.0,4.41789659]
[1759650342353,0.52797149,4584.1,4584.0,4.41789659]
[1759650342754,0.31847149,4584.1,4584.0,4.41789659]
[1759650343351,0.03088106,4584.3,4584.1,0.39254]
[1759650343552,0.1283,4584.5,4584.3,0.39252]
[1759650343754,0.1283,4584.5,4584.4,0.219]
[1759650344356,0.13083613,4584.5,4584.4,0.219]
[1759650345451,0.43853613,4584.5,4584.4,0.219]
[1759650345853,0.1283,4585.0,4584.4,0.219]
[1759650345854,0.1283,4585.0,4584.9,0.39247]
[1759650346054,0.1283,4585.0,4584.9,5.79583506]
[1759650346755,0.13109993,4585.0,4584.9,4.80755253]
[1759650347851,0.44079993,4585.0,4584.9,4.80755253]
[1759650348356,0.44079993,4585.0,4584.9,5.79583506]
[1759650348757,0.39079993,4585.0,4584.9,5.79583506]
[1759650349357,0.39079993,4585.0,4584.9,10.79583506]
[1759650349358,0.1314,4585.0,4584.9,10.79583506]
[1759650350454,0.13348821,4585.0,4584.9,10.79583506]